bitfinex/quotes_ETHUSD_20240730
["timestamp","ask_amount","ask_price","bid_price","bid_amount"]
[1722343453017,3.03245145,3363.6,3363.3,0.2]
[1722343453218,2.97314,3363.5,3363.3,0.2]
[1722343453454,3.03262145,3363.4,3363.3,0.2]
[1722343453654,6.6063776,3363.4,3363.3,0.2]
[1722343454328,3.6331976,3363.4,3363.3,0.2]
[1722343454531,6.6063776,3363.4,3363.3,0.2]
[1722343455056,3.6331976,3363.4,3363.3,0.2]
[1722343455573,6.6063776,3363.4,3363.3,0.2]
[1722343455722,3.6331976,3363.4,3363.3,0.2]
[1722343456219,3.57375615,3363.4,3363.3,0.2]
[1722343456417,2.97318,3363.4,3363.3,0.2]
[1722343456624,3.03262145,3363.4,3363.3,0.2]
[1722343457119,3.03262145,3363.4,3363.3,0.4]
[1722343457315,6.00580145,3363.4,3363.3,0.4]
[1722343457562,3.03262145,3363.4,3363.3,0.4]
[1722343457766,3.27644215,3363.4,3363.3,0.4]
[1722343458137,6.24962215,3363.4,3363.3,0.4]
[1722343459004,9.22280215,3363.4,3363.3,0.4]
[1722343459151,6.79962215,3363.4,3363.3,0.4]
[1722343459352,9.77280215,3363.4,3363.3,0.4]
[1722343459659,18.27878215,3363.4,3363.3,0.4]
[1722343459850,21.27878215,3363.4,3363.3,0.4]
[1722343460568,18.30560215,3363.4,3363.3,0.4]
[1722343460773,15.16260215,3363.4,3363.3,0.4]
[1722343460977,8.63942215,3363.4,3363.3,0.4]
[1722343461494,11.61260215,3363.4,3363.3,0.6]
[1722343461713,9.18942215,3363.4,3363.3,0.6]
[1722343461871,12.16260215,3363.4,3363.3,0.6]
[1722343462203,8.63942215,3363.4,3363.3,0.6]
[1722343462698,11.61260215,3363.4,3363.3,0.6]
[1722343463052,12.16260215,3363.4,3363.3,0.6]
[1722343464708,15.13578215,3363.4,3363.3,0.6]
[1722343464856,12.16260215,3363.4,3363.3,0.6]
[1722343465371,18.27878215,3363.4,3363.3,0.8]
[1722343465573,21.27878215,3363.4,3363.3,0.8]
[1722343466663,18.61662831,3363.4,3363.3,0.8]
[1722343467176,21.74262831,3363.4,3363.3,0.8]
[1722343467383,24.71580831,3363.4,3363.3,0.8]
[1722343467681,21.43160215,3363.4,3363.3,0.8]
[1722343468605,17.73860215,3363.4,3363.3,0.8]
[1722343469423,14.76542215,3363.4,3363.3,0.8]
[1722343469706,12.37562215,3363.4,3363.3,1.0]
[1722343469915,9.37562215,3363.4,3363.3,1.0]
[1722343470419,12.34880215,3363.4,3363.3,1.0]
[1722343471198,9.37562215,3363.4,3363.3,1.0]
[1722343471909,12.34880215,3363.4,3363.3,1.0]
[1722343472110,9.37562215,3363.4,3363.3,1.0]
[1722343473868,2.97318,3363.4,3363.3,1.0]
[1722343474427,6.00580145,3363.4,3363.3,1.0]
[1722343475306,9.13180145,3363.4,3363.3,1.0]
[1722343475827,12.10498145,3363.4,3363.3,1.0]
[1722343476619,12.65498145,3363.4,3363.3,1.0]
[1722343476919,10.94947115,3363.4,3363.3,1.0]
[1722343477077,9.07236,3363.4,3363.3,1.0]
[1722343478607,12.59554,3363.4,3363.3,1.0]
[1722343479317,15.56872,3363.4,3363.3,1.0]
[1722343479501,12.59554,3363.4,3363.3,1.0]
[1722343479978,9.62236,3363.4,3363.3,1.0]
[1722343480180,10.881898,3363.4,3363.3,1.0]
[1722343482135,13.855078,3363.4,3363.3,1.0]
[1722343482652,19.971258,3363.4,3363.3,1.0]
[1722343482853,19.998078,3363.4,3363.3,1.0]
[1722343484159,22.971258,3363.4,3363.3,1.0]
[1722343484958,19.998078,3363.4,3363.3,1.0]
[1722343485253,22.971258,3363.4,3363.3,1.0]
[1722343485456,19.998078,3363.4,3363.3,1.0]
[1722343486153,16.855078,3363.4,3363.3,1.0]
[1722343486311,13.881898,3363.4,3363.3,1.0]
[1722343488028,2.97316,3363.5,3363.3,1.0]
[1722343488230,3.03262145,3363.4,3363.3,1.0]
[1722343488515,0.05944145,3363.4,3363.3,1.0]
[1722343488923,3.03262145,3363.4,3363.3,1.0]
[1722343489507,6.00580145,3363.4,3363.3,1.0]
[1722343489713,6.9036846,3363.4,3363.3,1.0]
[1722343490023,10.0296846,3363.4,3363.3,1.0]
[1722343490233,10.0296846,3363.4,3363.3,1.0602832]
[1722343490559,6.15862145,3363.4,3363.3,1.0602832]
[1722343490912,3.03262145,3363.4,3363.3,1.0602832]
[1722343491585,0.05944145,3363.4,3363.3,1.0602832]
[1722343492030,2.97287,3363.8,3363.3,1.0602832]
[1722343492031,2.97282,3363.8,3363.3,1.0602832]
[1722343492235,0.31129703,3363.9,3363.3,1.0602832]
[1722343492793,3.0,3364.0,3363.4,2.97313]
[1722343493069,2.97212,3364.6,3363.7,2.97285]
[1722343493367,2.97212,3364.6,3363.5,3.09273679]
[1722343493368,0.05944145,3364.5,3363.8,0.06006234]
[1722343493576,0.05944145,3364.5,3363.9,35.0]
[1722343493943,0.05944145,3364.5,3363.7,2.97289]
[1722343494131,3.03166145,3364.5,3364.0,0.05801584]
[1722343494336,0.05944145,3364.4,3363.3,1.0]
[1722343494570,0.05944145,3364.4,3364.1,0.05782947]
[1722343494571,2.97244,3364.3,3364.1,0.05782947]
[1722343494768,2.97285,3363.8,3363.3,1.0]
[1722343494980,0.05944145,3363.7,3363.4,35.0]
[1722343495136,2.97306,3363.6,3363.4,0.05791667]
[1722343495335,3.03253145,3363.5,3363.4,0.05791667]
[1722343495536,2.97318,3363.4,3363.3,1.0]
[1722343495777,6.54693114,3363.4,3363.3,1.0]
[1722343496361,3.57375114,3363.4,3363.3,1.0]
[1722343496586,2.97318,3363.4,3363.3,1.0]
[1722343496907,3.03254145,3363.5,3363.3,1.0]
[1722343497675,3.0,3364.0,3363.3,1.0]
[1722343497977,2.97285,3363.8,3363.4,0.05603455]
[1722343498187,0.05944145,3363.7,3363.4,0.05603455]
[1722343498383,0.05944145,3363.7,3363.3,1.0]
[1722343498591,2.97305,3363.6,3363.3,1.0]
[1722343498760,0.05944145,3363.5,3363.4,0.05601659]
[1722343498962,0.05944145,3363.5,3363.3,1.0]
[1722343499314,0.05944145,3363.9,3363.4,0.056013]
[1722343499459,3.126,3364.6,3363.4,3.029143]
[1722343499658,3.03169145,3364.5,3363.4,3.029143]
[1722343499859,3.0,3365.2,3363.4,3.029143]
[1722343499860,3.0,3365.2,3363.8,2.97276]
[1722343500060,3.35440745,3365.0,3363.9,35.05591428]
[1722343500352,2.97257,3364.1,3363.9,35.05591428]
[1722343500518,3.03209145,3364.0,3363.9,0.05591428]
[1722343500663,6.00474145,3364.0,3363.9,0.05591428]
[1722343500861,6.00474145,3364.0,3363.3,2.5579]
[1722343500862,2.97293,3363.7,3363.3,2.5579]
[1722343501111,0.05944145,3363.6,3363.4,35.05585137]
[1722343501461,0.23166,3365.1,3363.5,2.97309]
[1722343501667,2.97228,3364.5,3363.6,0.05581978]
[1722343501863,2.97188,3364.9,3363.9,2.97267]
[1722343502061,2.97168,3365.1,3364.0,35.05568839]
[1722343502062,2.97226,3364.5,3364.0,35.05568839]
[1722343502310,0.05944145,3364.4,3364.0,35.05568839]
[1722343502525,2.97243,3364.3,3364.0,35.05568839]
[1722343502808,0.05944145,3364.2,3364.0,35.05568839]
[1722343503017,2.97186,3364.9,3364.0,38.02828839]
[1722343503167,2.97204,3364.7,3364.0,35.05568839]
[1722343503362,0.05944145,3364.6,3364.0,35.05568839]
[1722343503665,2.9724,3364.3,3364.0,35.05568839]
[1722343503872,0.05944145,3364.2,3364.0,35.05568839]
[1722343504075,2.97188,3364.9,3364.0,35.05568839]
[1722343504076,2.97231,3364.4,3364.0,35.05568839]
[1722343504262,0.05944145,3364.3,3364.0,0.05568839]
[1722343504481,2.97256,3364.1,3363.3,2.7579]
[1722343504720,2.97256,3364.1,3363.4,0.05569338]
[1722343504721,0.05944145,3364.0,3363.4,0.05569338]
[1722343504878,3.03213145,3364.0,3363.5,35.0]
[1722343505207,0.05944145,3364.0,3363.6,0.0556582]
[1722343505407,2.97188,3364.9,3363.6,0.0556582]
[1722343505408,6.7386,3365.2,3363.6,0.0556582]
[1722343505578,6.7386,3365.2,3363.9,2.97271]
[1722343505579,3.64554,3365.1,3363.9,2.97271]
[1722343505912,0.67386,3365.1,3364.0,0.11508048]
[1722343506066,0.67386,3365.1,3364.3,2.97231]
[1722343506269,0.67386,3365.1,3364.4,0.05549598]
[1722343506473,3.03125145,3365.0,3364.4,0.05549598]
[1722343506703,3.03125145,3365.0,3363.8,2.395]
[1722343506704,2.972,3364.8,3363.9,2.97268]
[1722343506909,0.05944145,3364.7,3364.0,35.05556631]
[1722343507117,0.05944145,3364.7,3364.1,2.97255]
[1722343507424,5.97161,3365.2,3364.3,2.97236]
[1722343507580,2.97168,3365.1,3364.3,2.97236]
[1722343507783,3.910661,3365.2,3364.4,35.05493223]
[1722343507784,3.0,3365.2,3364.4,35.05493223]
[1722343508024,3.0,3365.2,3364.5,5.94431]
[1722343508331,0.05944145,3365.1,3364.5,0.05491465]
[1722343508766,0.05944145,3365.1,3364.0,35.0]
[1722343508767,2.97194,3364.8,3364.0,35.0]
[1722343509069,2.97217,3364.6,3364.0,35.0]
[1722343509217,2.97243,3364.3,3364.1,0.05498497]
[1722343509416,0.05944145,3364.2,3364.1,0.05498497]
[1722343509922,2.97278,3363.9,3363.3,0.6]
[1722343510136,0.05944145,3364.2,3364.1,0.05498497]
[1722343510307,0.05944145,3364.2,3363.6,2.97296]
[1722343510308,0.05944145,3364.2,3363.7,35.0]
[1722343510508,0.05944145,3364.6,3363.7,35.0]
[1722343510737,2.97261,3364.1,3363.3,0.6]
[1722343510940,2.97279,3363.9,3363.3,0.6]
[1722343511119,0.05944145,3363.8,3363.4,35.0]
[1722343512023,2.97261,3364.1,3363.4,35.0]
[1722343512353,2.97268,3364.0,3363.4,35.0]
[1722343512521,3.7611,3364.6,3363.3,0.6]
[1722343512719,2.97287,3363.8,3363.3,0.6]
[1722343512938,2.97301,3363.6,3363.3,0.6]
[1722343513138,0.05944145,3363.5,3363.3,35.6]
[1722343513540,5.94636,3363.4,3363.3,0.6]
[1722343514056,9.14080145,3363.4,3363.3,0.6]
[1722343514209,4.5565976,3363.4,3363.3,0.6]
[1722343514412,7.5297776,3363.4,3363.3,0.6]
[1722343514846,4.5565976,3363.4,3363.3,0.6]
[1722343515009,7.5297776,3363.4,3363.3,0.6]
[1722343515212,5.39863,3364.3,3363.4,2.97313]
[1722343515213,2.97243,3364.3,3363.4,2.97313]
[1722343515425,2.92238,3364.3,3363.4,2.97312]
[1722343515629,0.05944145,3364.2,3363.3,0.6]
[1722343515830,2.97281,3363.9,3363.3,0.6]
[1722343516032,2.97297,3363.7,3363.3,0.6]
[1722343516255,0.05944145,3363.6,3363.3,0.6]
[1722343516713,0.05944145,3364.1,3363.3,0.6]
[1722343516845,2.97298,3363.7,3363.3,0.6]
[1722343517172,5.94636,3363.4,3363.3,0.6]
[1722343518344,3.03246145,3363.6,3363.3,0.6]
[1722343518634,2.97318,3363.4,3363.3,0.6]
[1722343518830,0.05944145,3363.4,3363.3,0.6]
[1722343519467,3.03262145,3363.4,3363.3,0.6]
[1722343519843,6.9198726,3363.4,3363.3,0.6]
[1722343520283,13.0280526,3363.4,3363.3,0.6]
[1722343520443,13.5780526,3363.4,3363.3,0.6]
[1722343520784,10.6048726,3363.4,3363.3,0.6]
[1722343520936,3.88725115,3363.4,3363.3,0.6]
[1722343521137,2.97288,3363.8,3363.3,0.6]
[1722343521336,2.97292,3363.7,3363.3,0.6]
[1722343521753,2.9727,3364.0,3363.4,0.054067]
[1722343522051,2.97251,3364.2,3363.4,0.054067]
[1722343522052,5.94507,3364.2,3363.4,0.054067]
[1722343522235,6.1076,3364.1,3363.4,0.054067]
[1722343522437,2.97265,3364.0,3363.4,0.054067]
[1722343522642,2.97283,3363.8,3363.4,0.054067]
[1722343522876,0.05944145,3363.7,3363.4,0.054067]
[1722343523176,3.03236145,3363.7,3363.4,0.054067]
[1722343523383,0.05944145,3363.7,3363.3,0.6]
[1722343523879,0.05944145,3363.7,3363.4,0.054067]
[1722343524049,0.05944145,3363.7,3363.3,0.6]
[1722343524247,0.05944145,3363.7,3363.5,0.05405659]
[1722343524545,6.9193306,3363.7,3363.6,0.05403541]
[1722343524937,2.97318,3363.4,3363.3,0.6]
[1722343525137,0.9734406,3363.7,3363.3,0.6]
[1722343525138,2.97309,3363.5,3363.3,0.6]
[1722343525365,2.97295,3363.7,3363.3,0.6]
[1722343525642,3.135,3363.8,3363.3,0.6]
[1722343525643,3.03246145,3363.6,3363.3,0.6]
[1722343525840,0.05944145,3363.6,3363.3,0.6]
[1722343526039,4.193211,3364.1,3363.4,0.05416039]
[1722343526249,2.9726,3364.1,3363.4,0.05416039]
[1722343526582,2.97274,3363.9,3363.3,0.6]
[1722343527035,6.1076,3364.1,3363.3,0.6]
[1722343527387,2.97261,3364.1,3363.3,0.6]
[1722343527572,2.97265,3364.0,3363.3,0.6]
[1722343527753,3.879776,3364.0,3363.4,0.05403111]
[1722343528090,0.60944145,3363.9,3363.4,0.05403111]
[1722343528299,12.20718,3363.5,3363.4,0.05403111]
[1722343528437,9.08136,3363.4,3363.3,0.6]
[1722343528642,9.63136,3363.4,3363.3,0.6]
[1722343528881,11.430665,3363.4,3363.3,0.6]
[1722343529183,14.403845,3363.4,3363.3,0.6]
[1722343529351,17.403845,3363.4,3363.3,0.6]
[1722343529555,14.430665,3363.4,3363.3,0.6]
[1722343529772,17.403845,3363.4,3363.3,0.6]
[1722343530484,20.377025,3363.4,3363.3,0.6]
[1722343532241,20.377025,3363.4,3361.4,2.3598]
[1722343532242,2.97436,3362.1,3361.4,2.3598]
[1722343532482,2.97438,3362.1,3361.4,2.3598]
[1722343532668,2.97446,3362.0,3361.5,0.09638578]
[1722343532958,2.97447,3362.0,3361.4,2.3598]
[1722343533154,2.97429,3362.2,3361.4,2.3598]
[1722343533353,2.97429,3362.2,3361.5,0.09638578]
[1722343533563,2.97446,3362.0,3361.4,2.3598]
[1722343533981,2.97446,3362.0,3361.5,0.09668763]
[1722343534182,0.05944145,3361.9,3361.5,0.09668763]
[1722343534406,2.97465,3361.8,3361.5,0.09668763]
[1722343534603,3.03418145,3361.7,3361.5,0.09668763]
[1722343534817,2.97477,3361.6,3361.5,0.09668763]
[1722343535391,2.97477,3361.6,3360.8,2.3364]
[1722343535392,2.975,3361.4,3360.8,2.3364]
[1722343535701,2.97513,3361.2,3360.8,2.3364]
[1722343535849,2.97513,3361.2,3359.7,2.97643]
[1722343535850,0.05944145,3361.1,3360.9,0.09697006]
[1722343536251,3.03471145,3361.1,3360.3,2.3008]
[1722343536472,3.03471145,3361.1,3361.0,0.09709138]
[1722343536790,2.97531,3361.0,3360.3,2.3008]
[1722343536998,0.05944145,3360.9,3360.3,2.3008]
[1722343537198,0.05944145,3360.9,3360.4,0.09720489]
[1722343537504,3.03488145,3360.9,3360.4,0.09720489]
[1722343537661,3.03488145,3360.9,3360.3,2.3008]
[1722343537847,3.03488145,3360.9,3360.5,0.09718597]
[1722343538051,3.03488145,3360.9,3360.4,0.09720489]
[1722343538284,2.97557,3360.7,3360.6,0.09716705]
[1722343538486,3.03501145,3360.7,3360.5,0.09718597]
[1722343538657,3.03501145,3360.7,3359.8,2.2859]
[1722343538863,3.03501145,3360.7,3359.8,5.26224]
[1722343539082,0.05944145,3360.7,3359.9,0.09729951]
[1722343539493,2.97529,3361.1,3360.1,2.97603]
[1722343539652,2.97499,3361.4,3359.9,0.15682263]
[1722343539857,6.10091,3361.5,3360.5,2.97569]
[1722343540055,2.97504,3361.3,3360.4,2.97576]
[1722343540274,2.97504,3361.3,3360.6,0.09854047]
[1722343540480,0.05944145,3361.2,3360.5,0.09855939]
[1722343540685,7.44846331,3361.6,3360.5,2.97572]
[1722343540999,15.486,3362.0,3359.6,2.97649]
[1722343541000,0.05944145,3361.5,3360.9,2.97531]
[1722343541196,0.05944145,3361.5,3360.6,5.47765047]
[1722343541357,2.97502,3361.4,3361.0,0.09837486]
[1722343541557,0.05944145,3361.3,3360.6,2.4035]
[1722343541791,6.00983145,3361.2,3361.1,0.09835594]
[1722343541997,2.97532,3361.0,3360.1,8.28637]
[1722343542196,2.97532,3361.0,3360.1,5.31033]
[1722343542197,0.05944145,3360.9,3360.1,5.31033]
[1722343542436,0.05944145,3360.9,3360.2,3.07445427]
[1722343542898,2.97549,3360.8,3360.2,0.09845427]
[1722343543235,2.97532,3361.0,3360.2,0.09845427]
[1722343543236,0.05944145,3360.7,3360.2,0.09845427]
[1722343543594,0.05944145,3360.7,3360.1,2.3343]
[1722343543800,0.05944145,3360.7,3360.3,0.09843534]
[1722343544009,0.05944145,3360.7,3360.2,0.09845427]
[1722343544010,2.97566,3360.6,3360.2,0.09845427]
[1722343544194,0.05944145,3360.5,3360.4,0.09841642]
[1722343544414,0.05944145,3360.5,3360.3,0.09843534]
[1722343544613,0.05944145,3360.5,3359.8,2.97631]
[1722343544943,0.05944145,3360.5,3359.8,2.9763]
[1722343545100,0.05944145,3361.1,3360.1,2.97604]
[1722343545294,2.97536,3361.0,3360.2,3.07441427]
[1722343545521,0.05944145,3360.9,3360.2,3.07441427]
[1722343545913,3.03484145,3360.9,3360.2,0.09845427]
[1722343546238,3.03484145,3360.9,3359.6,2.3216]
[1722343546239,2.97561,3360.7,3359.6,5.29808]
[1722343546539,2.97579,3360.5,3359.7,2.97643]
[1722343546697,0.05944145,3360.4,3359.7,0.0985489]
[1722343546902,3.03532145,3360.4,3359.7,0.0985489]
[1722343547451,2.97593,3360.3,3359.7,0.0985489]
[1722343547743,0.05944145,3360.2,3359.7,0.0985489]
[1722343548362,3.03550145,3360.2,3359.7,0.0985489]
[1722343548517,2.97616,3360.1,3359.7,0.0985489]
[1722343548845,0.05944145,3360.0,3359.3,2.97678]
[1722343549054,0.05944145,3360.3,3359.8,0.09852997]
[1722343549207,2.97544,3360.9,3359.4,0.05953239]
[1722343549641,2.97544,3360.9,3360.1,2.97609]
[1722343549953,2.97564,3360.7,3360.2,0.09845427]
[1722343550118,0.05944145,3360.6,3360.2,0.09845427]
[1722343550319,0.05944145,3360.6,3359.7,2.9764]
[1722343550506,0.05944145,3360.6,3359.9,2.97622]
[1722343550706,0.05944145,3360.6,3360.0,0.09849212]
[1722343551112,2.9758,3360.5,3360.0,0.09849212]
[1722343551324,0.05944145,3360.4,3359.7,2.9764]
[1722343551550,0.05944145,3360.4,3359.8,0.09860554]
[1722343552253,0.05944145,3360.4,3360.0,2.97617]
[1722343552407,2.97549,3360.8,3360.0,2.97617]
[1722343552612,6.10136,3361.0,3360.1,0.09854876]
[1722343552809,2.97548,3360.8,3360.1,0.09854876]
[1722343553070,3.126,3361.0,3360.2,2.976]
[1722343553071,6.10132,3361.0,3360.2,2.976]
[1722343553244,6.10132,3361.0,3360.2,3.07479248]
[1722343553440,6.10131,3361.0,3360.2,0.09879248]
[1722343553776,0.05944145,3360.9,3360.2,0.09879248]
[1722343553910,5.9511,3360.8,3360.2,0.09879248]
[1722343554111,2.97567,3360.6,3360.2,0.09879248]
[1722343554307,3.03523145,3360.5,3359.7,2.97645]
[1722343554554,3.03523145,3360.5,3359.8,0.09877822]
[1722343555048,0.05944145,3360.5,3359.5,5.34717]
[1722343555346,2.97575,3360.5,3359.5,2.3706]
[1722343555547,0.05944145,3360.4,3359.7,2.97636]
[1722343555750,0.05944145,3360.4,3359.9,2.97622]
[1722343555914,0.05944145,3360.4,3359.8,3.07510822]
[1722343556311,0.05944145,3360.4,3359.8,0.09877822]
[1722343556518,0.3629656,3360.4,3359.5,2.3706]
[1722343556717,2.97601,3360.2,3359.9,0.09875929]
[1722343556974,0.05944145,3360.1,3359.5,2.97662]
[1722343557272,0.05944145,3360.1,3360.0,0.09874037]
[1722343557768,0.05944145,3360.1,3359.4,2.97663]
[1722343558107,0.05944145,3360.1,3360.0,0.09874037]
[1722343558610,0.05944145,3360.1,3359.4,2.97668]
[1722343558781,0.05944145,3360.1,3360.0,0.09874037]
[1722343558979,0.05944145,3360.1,3359.2,2.97689]
[1722343559182,0.05944145,3360.1,3360.0,0.09874037]
[1722343559389,2.97557,3360.7,3359.9,2.97627]
[1722343559582,2.97557,3360.7,3360.0,0.09874037]
[1722343559780,0.05944145,3360.6,3360.0,0.09874037]
[1722343560108,3.03516145,3360.6,3360.0,0.09874037]
[1722343560266,0.05944145,3360.6,3359.9,2.97621]
[1722343560466,0.05944145,3360.6,3360.1,0.09872144]
[1722343560713,0.05944145,3360.6,3360.2,0.09870252]
[1722343560942,0.05944145,3360.6,3359.9,2.97627]
[1722343561158,10.57446331,3361.0,3360.3,0.09868359]
[1722343561457,10.57446331,3361.0,3360.6,2.97565]
[1722343561458,7.44846331,3361.0,3360.6,2.97565]
[1722343561814,7.44846331,3361.0,3360.7,0.09880222]
[1722343562220,3.03488145,3360.9,3360.1,3.03560443]
[1722343562414,7.44846331,3361.0,3360.1,3.03555443]
[1722343562665,7.44846331,3361.0,3360.3,0.2989]
[1722343562866,3.126,3361.5,3361.1,2.97515]
[1722343562867,7.44846331,3361.5,3361.1,2.97515]
[1722343563163,7.44846331,3361.9,3361.2,2.9751]
[1722343563316,0.05944145,3361.8,3361.2,3.07363852]
[1722343563518,2.97474,3361.7,3361.2,0.09853852]
[1722343563720,3.03426145,3361.6,3360.8,2.6096]
[1722343563962,0.05944145,3361.6,3360.9,3.07376022]
[1722343564130,7.44846331,3361.9,3361.3,2.97497]
[1722343564347,7.44846331,3361.9,3361.5,2.97481]
[1722343564668,0.05944145,3361.8,3361.6,0.09812837]
[1722343564896,2.97468,3361.7,3361.6,0.09812837]
[1722343565098,2.975,3361.4,3360.8,0.2]
[1722343565229,0.05944145,3361.3,3360.8,0.2]
[1722343565430,0.05944145,3361.3,3360.9,0.09825716]
[1722343565829,3.28620624,3361.7,3360.9,2.97537]
[1722343566029,0.05944145,3361.6,3360.8,0.2]
[1722343566229,0.31145624,3361.7,3361.0,3.07347465]
[1722343566459,0.31145624,3361.7,3361.2,2.97508]
[1722343566772,0.31145624,3361.7,3361.3,0.09823904]
[1722343566991,2.97495,3361.5,3361.3,0.09823904]
[1722343567170,0.05944145,3361.4,3360.8,3.17543]
[1722343567370,0.05944145,3361.5,3360.9,2.97533]
[1722343567569,0.31145624,3361.7,3361.2,2.97512]
[1722343567780,0.31145624,3361.7,3361.2,2.97506]
[1722343568136,0.31145624,3361.7,3361.3,0.09818151]
[1722343568252,3.03427145,3361.6,3361.3,0.09818151]
[1722343568453,2.97486,3361.5,3360.8,0.2]
[1722343568769,3.03439145,3361.4,3360.8,0.2]
[1722343568958,0.05944145,3361.4,3360.8,0.2]
[1722343569866,3.03422145,3361.6,3360.8,0.2]
[1722343570067,2.97488,3361.5,3360.8,0.2]
[1722343570300,0.05944145,3361.4,3360.8,0.2]
[1722343570478,3.03439145,3361.4,3360.8,0.2]
[1722343570656,0.05944145,3361.4,3360.8,0.2]
[1722343570993,2.97519,3361.2,3360.8,0.2]
[1722343571192,0.05944145,3361.1,3360.8,0.2]
[1722343571495,0.05944145,3361.3,3360.8,0.2]
[1722343571850,0.05944145,3361.3,3360.8,3.17543]
[1722343572051,3.03399145,3361.9,3360.9,5.95066]
[1722343572273,3.03399145,3361.9,3360.9,2.97532]
[1722343572554,0.05944145,3361.9,3360.9,0.05950217]
[1722343572755,3.28578496,3362.1,3361.1,2.97513]
[1722343572978,3.28578496,3362.1,3361.2,2.97512]
[1722343573192,3.28578496,3362.1,3361.1,0.05949743]
[1722343573193,0.31144496,3362.1,3361.3,2.97501]
[1722343573494,3.28579496,3362.1,3361.3,2.97501]
[1722343573682,0.05944145,3362.0,3361.2,2.97511]
[1722343573886,3.03390145,3362.0,3361.1,2.97521]
[1722343574070,3.03390145,3362.0,3361.2,2.97512]
[1722343574999,3.03390145,3362.0,3361.2,5.95018]
[1722343575224,0.05944145,3362.0,3360.9,0.05949735]
[1722343575512,0.31144496,3362.1,3361.6,2.9747]
[1722343575803,2.97405,3362.5,3361.8,2.97456]
[1722343575804,3.0,3362.5,3361.8,2.97456]
[1722343576102,3.0,3362.5,3361.8,2.97459]
[1722343576316,0.07436171,3362.4,3361.7,2.97468]
[1722343576798,0.07436171,3362.4,3360.8,3.17544]
[1722343576799,0.78197073,3362.4,3361.2,2.97508]
[1722343576998,0.78197073,3362.4,3361.5,2.97485]
[1722343576999,2.97415,3362.3,3361.5,2.97485]
[1722343577184,0.07436677,3362.2,3361.6,2.97472]
[1722343577384,0.07436677,3362.2,3361.7,2.97463]
[1722343577583,0.07436677,3362.2,3361.6,2.97477]
[1722343578096,0.07436623,3362.3,3361.6,2.97471]
[1722343578602,0.07436623,3362.3,3361.4,0.05949337]
[1722343578807,3.0,3362.6,3361.4,0.05949337]
[1722343578972,3.597383,3362.6,3361.9,2.97446]
[1722343579171,3.371333,3362.6,3361.7,2.97465]
[1722343579379,2.97411,3362.4,3361.5,2.9748]
[1722343579590,2.97411,3362.4,3361.1,2.9752]
[1722343579591,0.62436281,3362.3,3361.1,2.97515]
[1722343579795,2.97439,3362.1,3361.1,2.97517]
[1722343580122,0.07437054,3362.0,3361.3,2.97499]
[1722343580479,0.07437054,3362.0,3361.4,0.09762661]
[1722343580904,0.07437054,3362.0,3360.8,0.2]
[1722343581076,2.97491,3361.5,3360.8,0.2]
[1722343581277,5.95019,3361.3,3360.8,0.2]
[1722343581519,0.07438796,3361.2,3360.8,0.2]
[1722343581876,3.04951796,3361.2,3360.8,0.2]
[1722343582072,0.07438794,3361.1,3360.8,0.2]
[1722343582520,2.97539,3360.9,3360.8,0.2]
[1722343582722,3.04965794,3361.1,3360.8,0.2]
[1722343582926,0.53827596,3361.1,3360.8,0.2]
[1722343583417,5.95078,3360.9,3360.8,0.2]
[1722343583617,6.02517979,3360.9,3360.8,0.2]
[1722343583823,6.57517979,3360.9,3360.8,0.2]
[1722343584023,3.59978979,3360.9,3360.8,0.2]
[1722343584225,7.82243957,3360.9,3360.8,0.2]
[1722343584922,4.84704957,3360.9,3360.8,0.2]
[1722343585130,0.07439979,3360.9,3360.8,0.2]
[1722343585332,0.07439767,3361.0,3360.8,0.2]
[1722343585491,2.97539,3360.9,3360.8,0.2]
[1722343586115,0.07439767,3361.0,3360.8,0.2]
[1722343586323,2.97539,3360.9,3360.8,0.2]
[1722343586518,0.07439767,3361.0,3360.8,0.2]
[1722343586883,0.07438795,3361.2,3360.8,0.2]
[1722343587122,0.07438797,3361.4,3360.9,0.09477972]
[1722343587663,0.07438797,3361.4,3361.0,0.09517441]
[1722343587822,0.07438797,3361.4,3360.8,3.17547]
[1722343588018,0.07438797,3361.4,3361.1,0.09515549]
[1722343588223,0.07438797,3361.4,3360.8,0.2]
[1722343588424,0.07438797,3361.4,3361.2,0.09513658]
[1722343588663,0.07438797,3361.4,3360.8,0.2]
[1722343588872,10.42310331,3361.8,3360.9,2.97533]
[1722343589078,10.42310331,3361.8,3361.0,2.97525]
[1722343589079,0.55,3361.7,3361.0,2.97525]
[1722343589259,0.07438302,3361.6,3361.0,0.09517441]
[1722343589420,0.07438302,3361.6,3360.8,0.2]
[1722343589421,2.97508,3361.3,3360.8,0.2]
[1722343589625,0.07438353,3361.2,3360.8,0.2]
[1722343589849,0.07438353,3361.2,3360.9,0.09519332]
[1722343590023,0.07438353,3361.2,3360.8,0.2]
[1722343590223,0.07438353,3361.2,3361.0,0.09517441]
[1722343590534,2.97521,3361.1,3360.9,0.09519332]
[1722343590858,0.07438723,3361.0,3360.8,0.2]
[1722343591223,2.97527,3361.1,3360.8,0.2]
[1722343591424,5.28459,3360.9,3360.8,0.2]
[1722343591620,8.25998,3360.9,3360.8,0.2]
[1722343592053,5.95078,3360.9,3360.8,0.2]
[1722343592228,6.02517836,3360.9,3360.8,0.2]
[1722343592669,9.55056836,3360.9,3360.8,0.2]
[1722343592972,7.90398238,3360.9,3360.8,0.2]
[1722343593272,2.97572,3360.6,3359.7,2.9764]
[1722343593438,0.07440474,3360.5,3359.8,2.97636]
[1722343593638,7.44846331,3360.8,3360.0,2.97613]
[1722343593881,7.44846331,3360.8,3360.2,2.97594]
[1722343594041,7.44846331,3360.8,3359.6,0.05951912]
[1722343594042,7.44846331,3360.8,3360.3,2.97592]
[1722343594645,7.44846331,3360.8,3359.9,2.97622]